bitfinex/quotes_ETHUSD_20241129
["timestamp","ask_amount","ask_price","bid_price","bid_amount"]
[1732854839267,2.79719,3575.1,3574.8,0.06788355]
[1732854839472,2.79719,3575.1,3574.7,0.774]
[1732854839646,2.79719,3575.1,3574.9,0.06787152]
[1732854839840,3.0,3575.0,3574.7,0.774]
[1732854840160,3.0,3575.0,3574.8,0.06788355]
[1732854840325,2.79722,3575.0,3574.8,0.06788355]
[1732854840666,3.0,3575.2,3574.9,0.06787152]
[1732854840968,5.79707,3575.2,3574.7,0.774]
[1732854841172,5.79698,3575.3,3574.9,0.7699]
[1732854841663,5.79698,3575.3,3575.0,0.06783131]
[1732854841863,3.0,3575.4,3575.0,0.06783131]
[1732854842064,3.0,3575.5,3575.0,0.06783131]
[1732854842371,3.0141276,3575.5,3575.0,0.06783131]
[1732854842576,3.0,3575.5,3575.0,0.43134744]
[1732854843571,3.0,3575.2,3575.1,0.7919]
[1732854844065,3.0,3575.2,3575.1,0.85923362]
[1732854844767,5.79704,3575.2,3575.1,0.85923362]
[1732854845838,5.79704,3575.2,3575.1,0.7919]
[1732854846178,5.79704,3575.2,3575.1,0.85916785]
[1732854847077,5.79704,3575.2,3575.1,0.06726785]
[1732854847281,5.79704,3575.2,3574.7,0.8322]
[1732854847440,2.79726,3575.0,3574.8,0.06730392]
[1732854847745,2.79726,3575.0,3574.7,0.8322]
[1732854847966,2.79726,3575.0,3574.8,0.06730392]
[1732854848287,2.8112476,3575.1,3574.7,0.8322]
[1732854848490,2.7972,3575.0,3574.8,0.06730392]
[1732854848786,2.79782,3574.2,3574.1,0.8232]
[1732854848988,2.79795,3574.1,3573.5,0.8232]
[1732854849207,2.79795,3574.1,3573.6,0.362159]
[1732854849553,2.79765,3574.5,3573.6,0.362159]
[1732854849748,2.79783,3574.2,3573.6,0.7647]
[1732854850894,2.7979,3574.1,3573.6,0.7647]
[1732854851577,0.0141276,3574.3,3573.6,0.7647]
[1732854851794,2.79818,3573.8,3573.6,0.7647]
[1732854852181,2.79852,3573.4,3572.9,0.7754]
[1732854852409,2.79852,3573.4,3572.9,1.132841]
[1732854855269,2.79828,3573.7,3572.9,3.931661]
[1732854855511,2.79839,3573.5,3572.9,1.132841]
[1732854855904,2.79845,3573.4,3572.9,1.132841]
[1732854856218,2.79854,3573.3,3572.9,1.132841]
[1732854856418,2.79858,3573.3,3572.9,0.7754]
[1732854859080,2.79867,3573.2,3572.9,0.7754]
[1732854860710,2.79847,3573.4,3572.9,0.7754]
[1732854861422,2.79854,3573.3,3572.9,0.7754]
[1732854865530,2.79837,3573.6,3572.9,0.7754]
[1732854865531,2.79841,3573.5,3572.9,0.7754]
[1732854865712,2.79781,3574.3,3573.2,3.55271]
[1732854865883,2.79768,3574.4,3573.5,0.7541]
[1732854866077,2.79751,3574.6,3573.7,2.79816]
[1732854866276,2.79751,3574.6,3573.9,0.7541]
[1732854866582,4.0,3574.0,3573.9,0.7541]
[1732854866796,2.79759,3574.5,3573.9,0.7541]
[1732854867114,2.79735,3574.8,3574.0,0.06838399]
[1732854867317,0.0141276,3574.7,3574.0,0.06838399]
[1732854867721,2.79773,3574.4,3574.0,0.06838399]
[1732854868409,2.79782,3574.3,3574.0,0.06838399]
[1732854868722,2.7979,3574.1,3574.0,0.06838399]
[1732854869195,5.7979,3574.1,3574.0,0.06838399]
[1732854869393,3.0,3573.7,3573.3,0.7601]
[1732854869580,2.79798,3574.0,3573.3,0.7601]
[1732854869782,3.0,3573.9,3573.4,0.06824307]
[1732854869981,2.79798,3574.0,3573.4,0.06824307]
[1732854870407,2.79798,3574.0,3573.5,0.774]
[1732854870620,2.79798,3574.0,3573.5,1.13807731]
[1732854870830,2.79798,3574.0,3573.6,0.06827854]
[1732854871833,5.79782,3574.3,3573.6,0.06827854]
[1732854871834,5.79785,3574.2,3573.6,0.06827854]
[1732854872130,3.0,3574.2,3573.6,0.06827854]
[1732854872511,3.0,3574.4,3573.7,2.79822]
[1732854872711,3.1,3574.6,3573.7,3.5467751]
[1732854873012,2.79774,3574.4,3573.8,0.7573]
[1732854873340,2.79774,3574.4,3573.9,0.06824244]
[1732854874141,3.0,3574.4,3573.9,0.06824244]
[1732854874436,3.0,3574.4,3573.9,0.49863654]
[1732854874898,2.79779,3574.3,3573.9,0.49863654]
[1732854875209,2.79779,3574.3,3573.9,0.06824244]
[1732854875826,5.79761,3574.5,3573.9,0.06824244]
[1732854876144,8.59526,3574.5,3573.9,0.06824244]
[1732854876341,0.1,3574.8,3573.9,0.06824244]
[1732854876342,0.0141276,3574.4,3573.9,0.06824244]
[1732854876550,2.79775,3574.3,3573.9,0.06824244]
[1732854877102,2.79783,3574.2,3573.9,0.06824244]
[1732854877511,2.79767,3574.4,3573.9,0.06824244]
[1732854878058,0.0141276,3574.3,3573.9,0.06824244]
[1732854878416,2.7979,3574.1,3573.9,0.06824244]
[1732854878647,2.79798,3574.0,3573.9,0.06824244]
[1732854881239,2.79825,3573.7,3573.5,0.7558]
[1732854881611,2.79825,3573.7,3573.6,0.068056]
[1732854883858,2.79853,3573.3,3573.2,0.7558]
[1732854884067,2.79853,3573.3,3572.7,0.8101]
[1732854884260,2.79853,3573.3,3572.8,0.640824]
[1732854884464,2.56928211,3574.1,3572.8,0.640824]
[1732854884670,2.79845,3573.4,3572.8,3.439724]
[1732854885044,5.59696,3573.4,3572.8,0.640824]
[1732854885249,2.79845,3573.4,3572.9,0.4249974]
[1732854886655,2.79855,3573.3,3572.8,0.640824]
[1732854887552,2.79841,3573.5,3572.8,3.439734]
[1732854887722,2.79845,3573.4,3572.8,3.439734]
[1732854887921,2.79845,3573.4,3572.8,0.640824]
[1732854888240,2.79819,3573.8,3572.9,0.8267]
[1732854888427,5.79831,3573.6,3573.0,2.94830115]
[1732854888630,5.79831,3573.6,3573.0,0.14955115]
[1732854889563,2.79798,3574.0,3573.1,3.65336507]
[1732854889764,2.79798,3574.0,3573.4,0.8267]
[1732854889765,3.0,3573.9,3573.4,0.8267]
[1732854890070,3.0,3573.9,3573.4,1.469084]
[1732854892947,3.0141276,3573.9,3573.4,1.469084]
[1732854893345,3.0,3573.9,3573.4,1.469084]
[1732854897234,2.79807,3573.9,3573.5,0.06838145]
[1732854898280,2.79814,3573.8,3573.5,0.06838145]
[1732854899365,0.0141276,3573.7,3573.5,0.06838145]
[1732854899672,8.36723211,3574.1,3572.6,0.7546]
[1732854899880,3.0,3573.9,3573.3,3.55312]
[1732854900181,3.0,3574.2,3573.4,0.82290885]
[1732854900346,3.0,3574.2,3573.7,0.7546]
[1732854900773,3.0,3574.2,3573.8,0.06826386]
[1732854900972,3.0,3574.2,3573.7,0.7546]
[1732854901135,3.0,3574.2,3573.9,0.06825183]
[1732854901342,2.79775,3574.3,3573.7,0.7546]
[1732854901543,5.36687211,3574.5,3574.0,0.0682398]
[1732854901852,4.0,3574.1,3573.7,0.7546]
[1732854902849,2.79783,3574.2,3573.7,0.7546]
[1732854903247,3.0,3574.4,3573.7,3.55281]
[1732854903482,5.79768,3574.4,3573.8,0.637916]
[1732854903850,3.0,3574.4,3573.8,0.637916]
[1732854904178,3.05690103,3574.3,3573.8,0.637916]
[1732854904374,0.25914103,3574.2,3573.8,0.637916]
[1732854904611,0.25914103,3574.1,3573.8,0.637916]
[1732854904779,0.25914103,3574.2,3573.8,0.637916]
[1732854905099,0.25914103,3574.1,3573.8,0.637916]
[1732854906603,0.25914103,3574.0,3573.8,0.637916]
[1732854906810,4.0395764,3574.2,3573.8,0.637916]
[1732854906811,0.25922457,3574.1,3573.8,0.637916]
[1732854906969,0.25922457,3574.0,3573.7,0.7546]
[1732854907276,4.0395764,3574.2,3573.7,0.7546]
[1732854907277,3.0571347,3574.1,3573.7,0.7546]
[1732854907484,0.2592247,3574.0,3573.7,0.7546]
[1732854907891,0.2592247,3574.1,3573.7,0.7546]
[1732854909304,3.0571347,3574.1,3573.7,0.7546]
[1732854909514,0.2592247,3574.0,3573.7,0.7546]
[1732854910290,2.79791,3574.1,3573.7,0.7546]
[1732854910514,0.25903053,3574.0,3573.7,0.7546]
[1732854911829,3.05702053,3574.0,3573.7,0.7546]
[1732854912051,0.25903053,3573.9,3573.7,0.7546]
[1732854912223,6.05709053,3573.9,3573.8,0.06808207]
[1732854912407,8.64056333,3573.9,3573.8,0.06808207]
[1732854912616,2.79855,3573.3,3573.0,0.7981]
[1732854913952,4.054244,3573.5,3573.0,0.7981]
[1732854914151,2.79858,3573.3,3573.0,0.7981]
[1732854914441,0.2589001,3573.2,3573.0,0.7981]
[1732854914648,3.0575101,3573.2,3573.0,0.7981]
[1732854914860,0.2589001,3573.1,3573.0,0.7981]
[1732854915142,0.25891454,3573.1,3572.5,2.79913]
[1732854915349,0.25891454,3573.1,3572.6,0.3908035]
[1732854915512,2.79864,3573.2,3572.6,0.3908035]
[1732854915707,0.25893263,3573.1,3572.6,0.3908035]
[1732854916309,2.79864,3573.2,3572.6,3.1898735]
[1732854916737,0.25893188,3573.1,3572.6,3.1898735]
[1732854917037,0.25893188,3573.1,3572.7,0.40064735]
[1732854918247,0.25893188,3573.1,3572.4,0.8166]
[1732854918248,1.2417364,3573.0,3572.4,0.8166]
[1732854918620,3.05758369,3573.1,3572.4,3.61578]
[1732854918825,4.0408164,3572.6,3572.5,0.06823854]
[1732854919149,4.0408164,3572.6,3572.0,0.274467]
[1732854919150,0.27301344,3572.6,3572.0,0.274467]
[1732854919310,0.27301344,3572.6,3572.4,0.7782]
[1732854919311,0.25888584,3572.6,3572.4,0.7782]
[1732854919568,3.0,3573.7,3572.6,0.7614]
[1732854919763,0.25873589,3573.6,3572.9,3.56024]
[1732854919985,3.05687589,3573.8,3573.2,0.7614]
[1732854920191,2.89791,3574.1,3573.3,0.36261779]
[1732854920394,2.89791,3574.1,3573.4,0.06611976]
[1732854920564,2.79786,3574.2,3573.4,0.06611976]
[1732854920781,2.79775,3574.3,3573.2,0.7614]
[1732854920982,2.79796,3574.1,3573.3,0.0661318]
[1732854921214,2.79796,3574.1,3573.4,0.64247518]
[1732854921365,2.79796,3574.1,3573.5,0.06610773]
[1732854922185,3.0,3574.0,3573.5,0.06610773]
[1732854923814,3.0,3574.0,3573.4,3.20700291]
[1732854924110,3.0,3574.0,3573.5,0.06390414]
[1732854924901,3.0,3574.0,3573.6,0.8306]
[1732854925218,2.66853112,3574.4,3573.6,0.8306]
[1732854925219,3.0,3574.4,3573.7,2.86212024]
[1732854925519,2.79744,3574.7,3573.7,2.89009957]
[1732854925688,2.79744,3574.7,3573.9,2.79804]
[1732854926018,2.79744,3574.7,3574.1,0.755]
[1732854926188,4.0,3574.2,3574.1,0.755]
[1732854926372,2.79728,3574.9,3574.1,3.55283]
[1732854926570,2.79728,3574.9,3574.1,0.755]
[1732854926877,2.89712,3575.1,3574.3,2.79774]
[1732854927421,0.1,3575.1,3574.1,1.1432273]
[1732854927585,2.79731,3574.9,3574.1,1.1432273]
[1732854927783,2.89715,3575.1,3574.2,2.79781]
[1732854928099,3.0,3575.0,3574.2,2.79776]
[1732854928613,0.1,3575.1,3574.2,2.79776]
[1732854928777,2.79723,3575.0,3574.2,2.79776]
[1732854928979,0.1,3575.1,3574.1,3.55289]
[1732854929181,2.79728,3574.9,3574.1,4.187978]
[1732854929374,2.79738,3574.8,3574.1,4.187978]
[1732854930995,3.0,3575.0,3574.2,2.7978]
[1732854931201,3.0,3574.9,3574.2,2.7978]
[1732854932112,2.79735,3574.9,3574.1,1.390088]
[1732854932312,2.79735,3574.9,3574.1,4.187948]
[1732854932640,3.0,3575.0,3574.2,3.28177105]
[1732854932785,3.0,3574.9,3574.2,0.48396105]
[1732854932986,2.79729,3574.9,3574.2,0.11613038]
[1732854933435,2.79736,3574.8,3574.2,0.11613038]
[1732854933782,2.79744,3574.7,3574.2,0.11613038]
[1732854934832,2.7975,3574.7,3574.2,0.11613038]
[1732854935029,2.79763,3574.5,3574.2,0.11613038]
[1732854935497,2.9116276,3574.7,3574.2,0.11613038]
[1732854935701,2.79775,3574.3,3574.2,0.11613038]
[1732854936103,2.79789,3574.2,3573.7,0.8052]
[1732854936390,2.79789,3574.2,3573.8,0.11597447]
[1732854936696,2.79789,3574.2,3573.7,0.8052]
[1732854936896,2.79789,3574.2,3573.9,0.11596096]
[1732854937101,2.79769,3574.4,3573.8,0.11597447]
[1732854937325,2.56853112,3574.5,3574.0,0.11594745]
[1732854937537,2.79777,3574.3,3574.0,0.11594745]
[1732854937843,2.79777,3574.3,3574.1,0.11593395]
[1732854938337,2.79777,3574.3,3573.7,0.8052]
[1732854938541,2.79777,3574.3,3574.2,0.11592044]
[1732854938700,5.36613112,3574.5,3573.7,0.8052]
[1732854939222,2.79767,3574.4,3573.8,0.11605279]
[1732854940737,2.79767,3574.4,3573.8,2.91418279]
[1732854941710,2.79767,3574.4,3573.8,0.11605279]
[1732854944519,2.56853112,3574.5,3573.8,2.91417279]
[1732854944718,5.36613112,3574.5,3573.9,0.8249]
[1732854945132,5.36613112,3574.5,3574.0,0.11602578]
[1732854945460,2.79767,3574.4,3574.0,0.11602578]
[1732854946559,2.56853112,3574.5,3574.0,0.11602578]
[1732854948147,5.36614112,3574.5,3574.0,0.11602578]
[1732854949844,2.56853112,3574.5,3574.0,0.11602578]
[1732854950561,3.0,3574.7,3574.1,3.623]
[1732854950862,3.0,3574.7,3574.2,0.11555414]
[1732854952076,3.0,3574.6,3574.2,0.11555414]
[1732854952237,3.0,3574.5,3574.2,0.11555414]
[1732854953160,3.0,3574.8,3574.2,0.11555414]
[1732854953395,5.79741,3574.8,3574.2,0.11555414]
[1732854954343,3.0,3574.6,3574.2,0.11555414]
[1732854954586,3.0,3574.8,3574.2,0.11555414]
[1732854954776,5.56853112,3574.8,3574.2,0.11555414]
[1732854955447,2.79762,3574.5,3574.2,0.11555414]
[1732854955868,2.79745,3574.7,3574.2,0.11555414]
[1732854956070,3.0,3574.6,3574.2,0.11555414]
[1732854956879,2.79753,3574.6,3574.2,0.11555414]
[1732854957182,2.79767,3574.5,3574.2,0.11555414]
[1732854958043,3.0,3574.7,3574.2,0.11555414]
[1732854958249,1.24161058,3574.4,3574.2,0.11555414]
[1732854959050,5.79749,3574.7,3574.2,0.11555414]
[1732854959474,1.24161058,3574.5,3574.2,0.11555414]
[1732854959672,5.79749,3574.7,3574.3,0.825]
[1732854959864,1.24161058,3574.5,3574.3,0.825]
[1732854960187,1.24161058,3574.5,3574.4,0.11545507]
[1732854960565,1.24161058,3574.5,3574.3,0.74045507]
[1732854960758,5.79749,3574.7,3574.4,0.11545507]
[1732854960973,1.24161058,3574.5,3574.4,0.11545507]
[1732854962695,4.03920058,3574.5,3574.4,0.11545507]
[1732854963099,4.03920058,3574.5,3572.9,4.04042058]
[1732854963100,1.24161058,3574.5,3572.8,3.55039057]
[1732854963256,1.24161058,3573.9,3572.8,3.45039057]
[1732854963460,1.24161058,3573.9,3573.4,2.79844]
[1732854963755,2.79853,3573.3,3573.2,0.8035]
[1732854963969,1.24161058,3573.2,3572.9,0.8035]
[1732854964171,4.04022058,3573.2,3572.9,0.8035]
[1732854964667,4.04022058,3573.2,3572.0,0.274467]
[1732854964668,2.79888,3572.9,3572.5,0.7525]
[1732854964805,1.24161058,3572.6,3572.5,0.7525]
[1732854965384,1.24161058,3572.6,3572.1,0.7525]
[1732854965715,1.24161058,3572.2,3572.1,0.7525]
[1732854966399,0.0141276,3572.7,3572.1,0.7525]
[1732854966400,2.57084335,3572.7,3572.1,0.7525]
[1732854966711,5.36985335,3572.7,3572.1,0.7525]
[1732854967017,2.79922,3572.5,3572.1,0.7525]
[1732854967312,5.36985335,3572.7,3572.1,0.7525]
[1732854969315,2.79947,3572.1,3572.0,0.38609855]
[1732854970517,5.98407,3572.1,3572.0,0.274467]
[1732854971184,8.55491335,3572.1,3572.0,0.274467]
[1732854971787,12.55491335,3572.1,3572.0,0.274467]
[1732854972827,8.55491335,3572.1,3572.0,0.274467]
[1732854973823,5.98407,3572.1,3572.0,0.274467]
[1732854974023,8.55491335,3572.1,3572.0,0.274467]
[1732854975820,12.55491335,3572.1,3572.0,0.274467]
[1732854976615,2.80063,3570.7,3570.4,0.8202]
[1732854976927,2.80066,3570.6,3570.4,0.8202]
[1732854978622,2.80066,3570.6,3570.5,0.11344601]
[1732854979201,2.80048,3570.9,3570.5,0.11344601]
[1732854979202,2.80051,3570.8,3570.5,0.11344601]
[1732854979518,2.80063,3570.7,3570.5,0.11344601]
[1732854980128,2.80064,3570.6,3570.5,0.11344601]
[1732854980492,2.80049,3570.8,3570.5,0.11344601]
[1732854981011,2.80048,3570.9,3570.5,0.11344601]
[1732854982093,2.80055,3570.8,3570.5,0.11344601]
[1732854982691,2.80047,3570.9,3570.5,0.11344601]
[1732854983798,2.80026,3571.1,3570.5,0.11344601]
[1732854984136,5.80035,3571.0,3570.5,0.11344601]
[1732854984727,3.0,3571.0,3570.5,0.11344601]
[1732854984934,3.0,3571.4,3570.8,2.80041]
[1732854985103,2.79971,3571.8,3571.0,2.80026]
[1732854985298,6.79953,3572.1,3571.1,0.78429878]
[1732854985498,4.0,3571.2,3571.1,0.87040857]
[1732854986238,2.79998,3571.5,3571.1,0.87040857]
[1732854986400,2.80005,3571.4,3571.1,0.87040857]
[1732854987825,5.79988,3571.6,3571.1,0.87040857]
[1732854988154,5.79973,3571.8,3571.1,0.87040857]
[1732854988300,3.0,3571.6,3571.1,0.87040857]
[1732854988503,2.7998,3571.7,3571.1,1.51752543]
[1732854989127,2.79987,3571.6,3571.1,1.51752543]
[1732854989331,2.80002,3571.4,3571.1,0.87040857]
[1732854989730,2.79987,3571.6,3571.1,0.87040857]
[1732854989918,5.5998,3571.6,3571.1,0.87040857]
[1732854990237,2.79996,3571.5,3571.1,0.87040857]
[1732854993335,2.80002,3571.4,3571.1,0.87040857]
[1732854993649,2.79986,3571.6,3571.1,0.87040857]
[1732854993853,2.80005,3571.4,3571.1,0.87040857]
[1732854995559,2.57084335,3571.7,3571.1,0.87040857]
[1732854995765,5.80017,3571.2,3571.1,0.11410857]
[1732854996056,3.0141276,3571.2,3570.4,0.7887]
[1732854996356,2.75544335,3571.3,3570.5,0.11380364]
[1732854996357,5.80036,3571.0,3570.5,0.11380364]
[1732854999864,2.79994,3571.5,3570.6,3.5908]
[1732855000024,3.0,3571.5,3570.9,0.7902]
[1732855000227,3.0,3571.5,3571.0,0.11392119]
[1732855000466,3.0,3571.4,3571.0,0.11392119]
[1732855000761,2.75544335,3572.1,3571.0,0.11392119]
[1732855000971,2.57084335,3571.7,3571.0,0.11392119]
[1732855001129,2.80011,3571.3,3571.0,0.11392119]
[1732855001474,0.25859959,3571.2,3571.0,0.11392119]
[1732855001828,3.05877959,3571.2,3571.0,0.11392119]
[1732855002029,2.79995,3571.5,3571.0,0.11392119]
[1732855002225,3.25859542,3571.4,3571.0,0.11392119]
[1732855002424,0.25859542,3571.3,3571.0,0.11392119]
[1732855003037,0.25859542,3571.3,3571.0,0.48438131]
[1732855003372,0.25858766,3571.5,3571.1,0.8222]
[1732855003570,0.25858766,3571.4,3571.1,0.8222]
[1732855003878,3.0,3571.6,3571.1,0.8222]
[1732855003879,0.25858766,3571.5,3571.2,0.11161005]
[1732855004178,0.25858766,3571.5,3571.2,2.80014]
[1732855004330,0.25858766,3571.7,3571.3,0.8207]
[1732855004526,0.25858766,3571.6,3571.3,0.93207053]
[1732855004729,0.25858766,3571.5,3571.3,0.93207053]
[1732855004974,0.25858766,3571.7,3571.3,0.93207053]
[1732855005127,0.25858766,3571.6,3571.3,0.93207053]
[1732855005333,0.25858766,3571.5,3571.3,0.93207053]
[1732855005644,0.25858766,3571.7,3571.3,3.73215053]
[1732855005835,2.79956,3572.0,3571.3,3.73215053]
[1732855005836,0.25858766,3571.6,3571.3,3.73215053]
[1732855006061,0.25858766,3571.8,3571.3,3.73215053]
[1732855006256,0.25861173,3571.7,3571.3,3.73215053]
[1732855006563,0.25861173,3571.7,3571.3,4.44140218]
[1732855006763,0.25861173,3571.7,3571.6,0.7775]
[1732855006978,2.79939,3572.2,3571.6,0.7775]
[1732855007287,0.25862748,3572.1,3571.6,0.7775]
[1732855007487,0.25862748,3572.0,3571.7,0.10748482]
[1732855007698,0.25862748,3572.3,3571.8,2.79968]
[1732855007870,0.25862748,3572.2,3571.9,0.10742012]
[1732855008069,0.25862748,3572.1,3571.9,0.10742012]
[1732855008271,0.25862748,3572.2,3571.9,0.10742012]
[1732855008797,0.25862748,3572.1,3571.9,0.10742012]
[1732855009004,0.25862748,3572.2,3571.9,0.10742012]
[1732855009157,0.25862748,3572.1,3571.9,0.10742012]
[1732855009357,0.25862748,3572.2,3571.9,2.90704012]
[1732855009553,3.0,3572.4,3572.0,0.8269]
[1732855009767,0.25862748,3572.3,3572.0,3.73377758]
[1732855009982,0.25862748,3572.5,3572.0,3.73377758]
[1732855010181,0.25862748,3572.4,3572.0,3.73377758]
[1732855010458,0.25862748,3572.5,3572.0,3.73377758]
[1732855011383,0.25862748,3572.5,3572.0,0.93423758]
[1732855011694,6.05779748,3572.5,3572.0,0.93423758]
[1732855011996,0.25862748,3572.4,3572.0,0.93423758]
[1732855013472,0.25862748,3572.6,3572.0,3.73375758]
[1732855013673,0.25862748,3572.6,3572.0,1.49617988]
[1732855013904,0.25862748,3573.0,3572.2,2.79939]
[1732855014105,5.55382335,3573.5,3572.8,0.7578]
[1732855014106,0.25862748,3573.2,3572.8,0.7578]
[1732855014306,4.0,3572.9,3572.8,0.7578]
[1732855015005,2.79854,3573.3,3572.8,0.7578]
[1732855015168,0.25830167,3573.2,3572.8,0.7578]
[1732855015373,3.25830167,3573.2,3572.8,0.7578]
[1732855015608,0.25830167,3573.1,3572.8,0.7578]
[1732855016000,2.79853,3573.3,3572.8,0.7578]
[1732855016181,0.25816806,3573.2,3572.8,0.7578]
[1732855016517,3.0,3573.1,3572.8,0.7578]
[1732855017238,3.0,3573.1,3572.9,0.10694931]
[1732855017799,3.0,3573.2,3572.9,0.10694931]
[1732855017987,2.79876,3573.0,3572.9,0.10694931]
[1732855018191,5.79876,3573.0,3572.9,0.10694931]
[1732855021047,5.98336,3573.0,3572.9,0.10694931]
[1732855021213,6.24126236,3573.0,3572.9,0.10694931]
[1732855021421,2.79898,3572.8,3572.3,0.7755]
[1732855021721,6.24126236,3573.0,3572.3,0.7755]
[1732855021722,2.79901,3572.7,3572.4,0.10666552]
[1732855021927,2.79916,3572.5,3572.4,0.10666552]
[1732855022133,2.79916,3572.5,3571.3,0.70925165]
[1732855022134,2.79932,3572.3,3572.0,0.7755]
[1732855022301,3.0,3572.4,3572.0,0.7755]
[1732855022498,5.7991,3572.6,3572.1,0.10670607]
[1732855022700,2.79916,3572.5,3572.1,0.10670607]
[1732855022937,3.0,3572.4,3572.1,0.10670607]
[1732855023102,3.0,3572.6,3572.1,0.10670607]
[1732855023509,5.79909,3572.6,3572.1,0.10670607]
[1732855024152,3.0,3572.4,3572.1,0.10670607]
[1732855024350,3.0,3572.3,3572.1,0.10670607]
[1732855024640,5.79914,3572.6,3572.1,0.10670607]
[1732855025053,2.79919,3572.5,3572.1,0.10670607]
[1732855025354,3.0,3572.4,3572.1,0.10670607]
[1732855027263,2.79924,3572.4,3572.1,0.10670607]
[1732855027432,3.0,3572.3,3572.1,0.10670607]
[1732855028458,2.79939,3572.2,3572.1,0.10670607]
[1732855028964,2.79939,3572.2,3572.1,0.10677507]
[1732855029163,2.79939,3572.2,3571.7,0.7987]
[1732855029569,2.79939,3572.2,3571.8,0.10698187]
[1732855030763,2.79963,3571.9,3571.8,0.10698187]
[1732855031261,2.79979,3571.7,3571.4,0.7761]
[1732855031628,2.79972,3571.8,3571.5,0.10714164]
[1732855033175,3.0,3571.7,3571.5,0.10714164]
[1732855035278,3.0,3571.9,3571.5,0.10714164]
[1732855035438,0.25856092,3571.8,3571.5,0.10714164]
[1732855037246,0.25858791,3571.8,3571.5,0.10714164]
[1732855037674,3.05831791,3571.8,3571.5,0.10714164]
[1732855037845,2.79973,3571.8,3571.5,0.10714164]
[1732855040090,3.0,3571.9,3571.5,0.10714164]
[1732855040256,0.25852873,3571.8,3571.5,0.10714164]
[1732855040647,2.79979,3571.7,3571.5,0.10714164]
[1732855041086,2.79979,3571.7,3571.1,0.7734]
[1732855041281,2.79979,3571.7,3571.6,0.10730893]
[1732855041446,2.79979,3571.7,3571.1,0.7734]
[1732855041648,5.79966,3571.9,3571.6,0.10730893]
[1732855041876,0.25851837,3571.8,3571.1,3.57364]
[1732855042185,0.25851837,3571.8,3571.1,4.211045]
[1732855042396,0.25851837,3571.8,3571.2,0.10736303]
[1732855042551,0.25851837,3571.8,3571.2,2.90752303]
[1732855042896,0.1846,3572.2,3571.2,2.90752303]
[1732855042897,1.24336894,3572.1,3571.5,2.79987]
[1732855043060,0.25852421,3572.1,3571.7,0.7998]
[1732855043393,0.25852421,3572.1,3571.8,0.10730072]
[1732855044585,1.24336894,3572.4,3571.8,2.90700072]
[1732855044816,0.25865006,3572.3,3571.8,2.90700072]
[1732855044977,4.301269,3572.4,3571.8,0.10730072]
[1732855045149,0.25865006,3572.3,3571.8,0.10730072]
[1732855045987,3.0,3572.2,3571.8,0.10730072]
[1732855046349,0.25876552,3572.1,3571.8,0.10730072]
[1732855046692,0.2587819,3572.1,3571.8,0.10730072]
[1732855046891,0.2587864,3572.1,3571.8,0.10730072]
[1732855047086,2.79963,3571.9,3571.8,0.10730072]
[1732855047266,2.79963,3571.9,3571.4,0.7647]
[1732855047597,2.79963,3571.9,3571.5,0.10722833]
[1732855048798,4.04283894,3572.1,3571.5,0.10722833]
[1732855048991,0.25887792,3572.0,3571.5,0.10722833]
[1732855049294,3.05848792,3572.0,3571.5,0.10722833]
[1732855049485,3.25887792,3571.9,3571.5,0.10722833]
[1732855049669,0.25887792,3571.8,3571.5,0.10722833]
[1732855050251,3.05858792,3571.8,3571.5,0.10722833]
[1732855050586,3.0,3571.7,3571.2,0.7607]
[1732855050788,3.0,3571.7,3571.6,0.10721481]
[1732855051110,3.0,3571.7,3571.2,0.7607]
[1732855051111,2.79989,3571.6,3571.2,0.7607]
[1732855051308,4.30227017,3571.5,3571.0,0.7813]
[1732855051509,4.04331894,3571.5,3571.0,0.7813]
[1732855051801,0.25896256,3571.4,3571.0,0.7813]
[1732855053118,0.25896256,3571.4,3571.0,3.58161]
[1732855053404,0.25896256,3571.5,3571.1,2.80024]
[1732855053703,0.25896256,3571.6,3571.1,2.80024]
[1732855053911,0.25896256,3571.5,3571.1,2.80024]
[1732855054091,0.25896256,3571.6,3571.1,2.80024]
[1732855054298,0.25896256,3571.5,3571.1,2.80024]
[1732855055116,0.25896926,3571.5,3571.1,2.80024]
[1732855056388,0.25896926,3571.5,3571.0,0.7813]
[1732855056790,3.0,3571.6,3571.0,0.7813]
[1732855056999,0.25900161,3571.5,3571.0,0.7813]
[1732855057506,3.25900161,3571.5,3571.0,0.7813]
[1732855057678,2.79984,3571.7,3571.0,3.5816]
[1732855057874,3.25904854,3571.6,3571.0,3.5816]
[1732855058084,3.0,3571.8,3571.0,3.5816]
[1732855058085,0.25904854,3571.5,3571.1,2.80025]
[1732855058285,0.25904802,3571.7,3571.1,2.80025]
[1732855058480,0.25904802,3571.6,3571.1,2.80025]
[1732855058709,0.25904802,3571.5,3571.1,2.80025]
[1732855058912,3.0,3571.7,3571.0,0.7813]
[1732855059241,0.25904802,3571.6,3571.3,3.61866]
[1732855059441,0.25910506,3571.8,3571.3,3.64665764]
[1732855059738,0.25910506,3571.7,3571.3,3.61866]
[1732855059904,3.0,3571.9,3571.3,3.61866]
[1732855060100,3.25911123,3571.8,3571.3,3.61866]
[1732855060302,0.25911123,3571.7,3571.3,3.61866]
[1732855060501,3.0,3571.8,3571.3,3.61866]
[1732855060736,0.25913249,3571.7,3571.3,3.61866]
[1732855060936,3.0,3571.8,3571.3,3.61866]
[1732855061097,0.25912836,3571.7,3571.3,3.61866]
[1732855061437,3.0,3571.8,3571.3,3.61866]
[1732855061624,0.25913474,3571.7,3571.3,3.61866]
[1732855061816,3.0,3571.8,3571.3,3.61866]
[1732855062135,0.25913188,3571.7,3571.4,2.79999]
[1732855062385,0.25913188,3572.0,3571.5,0.10728168]
[1732855062540,0.25913188,3571.9,3571.5,0.10728168]
[1732855062706,0.25913188,3571.8,3571.5,0.10728168]
[1732855063040,0.1846,3571.8,3571.5,0.10728168]
[1732855063202,3.05896978,3571.7,3571.1,0.7952]
[1732855063401,3.0,3571.7,3571.6,0.10726814]
[1732855063610,3.25912162,3571.7,3571.1,3.5954]